fUSD/lending_fUSD_20250109
["ID","MTS","AMOUNT","RATE_DAILY","PERIOD"]
[348357270,1736464241500,-500.0,9.842e-05,2]
[348357272,1736464241509,-500.0,9.842e-05,2]
[348357274,1736464241518,-500.0,9.842e-05,2]
[348357276,1736464241527,-500.0,9.842e-05,2]
[348357277,1736464241536,-500.0,9.842e-05,2]
[348357278,1736464241545,-537.03018582,9.842e-05,2]
[348357279,1736464241554,-500.0,9.842e-05,2]
[348357280,1736464241563,-500.0,9.842e-05,2]
[348357281,1736464241573,-732.17,9.842e-05,2]
[348357282,1736464241582,-500.0,9.842e-05,2]
[348357283,1736464241591,-274.176,9.842e-05,2]
[348357284,1736464241601,-500.0,9.842e-05,2]
[348357285,1736464241614,-436.7536754,9.842e-05,2]
[348357287,1736464241623,-209.51449709,9.842e-05,2]
[348357289,1736464241633,-500.0,9.842e-05,2]
[348357291,1736464241643,-500.0,9.842e-05,2]
[348357293,1736464241653,-624.3,9.842e-05,2]
[348357295,1736464241663,-1688.27,9.842e-05,2]
[348357297,1736464241672,-1617.92,9.842e-05,2]
[348357299,1736464241683,-500.0,9.842e-05,2]
[348357301,1736464241693,-500.0,9.842e-05,2]
[348357303,1736464241702,-500.0,9.842e-05,2]
[348357305,1736464241712,-500.0,9.842e-05,2]
[348357307,1736464241722,-500.0,9.842e-05,2]
[348357309,1736464241732,-500.0,9.842e-05,2]
[348357311,1736464241741,-500.0,9.842e-05,2]
[348357313,1736464241750,-910.13,9.842e-05,2]
[348357315,1736464241760,-500.0,9.842e-05,2]
[348357317,1736464241770,-500.0,9.842e-05,2]
[348357319,1736464241780,-500.0,9.842e-05,2]
[348357321,1736464241790,-500.0,9.842e-05,2]
[348357323,1736464241800,-586.16,9.842e-05,2]
[348357325,1736464241809,-500.0,9.842e-05,2]
[348357327,1736464241818,-500.0,9.842e-05,2]
[348357329,1736464241828,-500.0,9.842e-05,2]
[348357331,1736464241839,-775.45,9.842e-05,2]
[348357333,1736464241849,-500.0,9.842e-05,2]
[348357335,1736464241858,-541.48217894,9.842e-05,2]
[348357337,1736464241868,-500.0,9.842e-05,2]
[348357339,1736464241877,-773.27,9.842e-05,2]
[348357342,1736464241887,-500.0,9.842e-05,2]
[348357344,1736464241896,-500.0,9.842e-05,2]
[348357346,1736464241906,-500.0,9.842e-05,2]
[348357347,1736464241915,-500.0,9.842e-05,2]
[348357350,1736464241926,-500.0,9.842e-05,2]
[348357351,1736464241935,-500.0,9.842e-05,2]
[348357353,1736464241944,-501.64,9.842e-05,2]
[348357356,1736464241954,-1000.0,9.842e-05,2]
[348357358,1736464241963,-500.0,9.842e-05,2]
[348357359,1736464241972,-783.03,9.842e-05,2]
[348357362,1736464241981,-500.0,9.842e-05,2]
[348357363,1736464241991,-500.0,9.842e-05,2]
[348357366,1736464242000,-500.0,9.842e-05,2]
[348357367,1736464242009,-500.0,9.842e-05,2]
[348357369,1736464242019,-835.45,9.842e-05,2]
[348357371,1736464242028,-4209.22,9.842e-05,2]
[348357373,1736464242037,-583.28,9.842e-05,2]
[348357376,1736464242046,-956.43,9.842e-05,2]
[348357378,1736464242056,-500.0,9.842e-05,2]
[348357380,1736464242066,-500.0,9.842e-05,2]
[348357382,1736464242075,-500.0,9.842e-05,2]
[348357384,1736464242088,-500.0,9.842e-05,2]
[348357386,1736464242098,-738.09,9.842e-05,2]
[348357388,1736464242108,-500.0,9.842e-05,2]
[348357390,1736464242118,-2876.8,9.842e-05,2]
[348357392,1736464242127,-500.0,9.842e-05,2]
[348357394,1736464242136,-500.0,9.842e-05,2]
[348357396,1736464242146,-1097.95,9.842e-05,2]
[348357398,1736464242155,-726.83,9.842e-05,2]
[348357400,1736464242164,-500.0,9.842e-05,2]
[348357402,1736464242173,-516.43,9.842e-05,2]
[348357404,1736464242183,-1107.12,9.842e-05,2]
[348357406,1736464242192,-2009.4,9.842e-05,2]
[348357408,1736464242202,-500.0,9.842e-05,2]
[348357410,1736464242211,-500.0,9.842e-05,2]
[348357412,1736464242220,-500.0,9.842e-05,2]
[348357414,1736464242229,-500.0,9.842e-05,2]
[348357416,1736464242238,-500.0,9.842e-05,2]
[348357418,1736464242247,-500.0,9.842e-05,2]
[348357420,1736464242257,-1086.67,9.842e-05,2]
[348357422,1736464242266,-512.61193536,9.842e-05,2]
[348357424,1736464242275,-517.41701585,9.842e-05,2]
[348357426,1736464242285,-500.0,9.842e-05,2]
[348357427,1736464242295,-500.0,9.842e-05,2]
[348357428,1736464242304,-503.24,9.842e-05,2]
[348357429,1736464242314,-728.55,9.842e-05,2]
[348357430,1736464242323,-881.94,9.842e-05,2]
[348357431,1736464242332,-3195.85,9.842e-05,2]
[348357432,1736464242341,-500.0,9.842e-05,2]
[348357433,1736464242351,-548.76,9.842e-05,2]
[348357434,1736464242360,-500.0,9.842e-05,2]
[348357435,1736464242370,-537.86,9.842e-05,2]
[348357436,1736464242380,-500.0,9.842e-05,2]
[348357437,1736464242390,-500.0,9.842e-05,2]
[348357438,1736464242400,-547.72,9.842e-05,2]
[348357439,1736464242410,-500.0,9.842e-05,2]
[348357440,1736464242419,-500.0,9.842e-05,2]
[348357441,1736464242429,-505.97515746,9.842e-05,2]
[348357442,1736464242439,-653.05,9.842e-05,2]
[348357443,1736464242448,-1396.54,9.842e-05,2]
[348357444,1736464242457,-713.08,9.842e-05,2]
[348357445,1736464242467,-500.0,9.842e-05,2]
[348357446,1736464242477,-500.0,9.842e-05,2]
[348357447,1736464242487,-572.86,9.842e-05,2]
[348357448,1736464242497,-500.0,9.842e-05,2]
[348357449,1736464242507,-500.0,9.842e-05,2]
[348357450,1736464242517,-500.0,9.842e-05,2]
[348357451,1736464242526,-500.0,9.842e-05,2]
[348357452,1736464242535,-500.0,9.842e-05,2]
[348357453,1736464242545,-981.79,9.842e-05,2]
[348357454,1736464242555,-500.0,9.842e-05,2]
[348357455,1736464242564,-1601.87,9.842e-05,2]
[348357456,1736464242574,-500.0,9.842e-05,2]
[348357457,1736464242584,-500.0,9.842e-05,2]
[348357458,1736464242594,-500.0,9.842e-05,2]
[348357459,1736464242606,-728.25,9.842e-05,2]
[348357460,1736464242615,-500.0,9.842e-05,2]
[348357461,1736464242624,-500.0,9.842e-05,2]
[348357462,1736464242634,-793.1,9.842e-05,2]
[348357463,1736464242644,-500.0,9.842e-05,2]
[348357464,1736464242654,-500.0,9.842e-05,2]
[348357465,1736464242664,-500.0,9.842e-05,2]
[348357466,1736464242673,-683.34,9.842e-05,2]
[348357467,1736464242682,-15254.9334,9.899e-05,2]
[348357468,1736464242692,-218.95075136,9.966e-05,2]
[348357469,1736464242701,-500.0,9.996e-05,2]
[348357470,1736464242710,-500.0,9.996e-05,2]
[348357471,1736464242720,-500.0,9.996e-05,2]
[348357472,1736464242730,-500.0,9.996e-05,2]
[348357473,1736464242740,-500.0,9.996e-05,2]
[348357474,1736464242750,-500.0,9.996e-05,2]
[348357475,1736464242759,-502.24241625,9.996e-05,2]
[348357476,1736464242769,-500.0,9.996e-05,2]
[348357477,1736464242778,-500.0,9.996e-05,2]
[348357478,1736464242789,-501.61989621,9.996e-05,2]
[348357479,1736464242799,-501.70672907,9.996e-05,2]
[348357480,1736464242808,-500.0,9.996e-05,2]
[348357481,1736464242817,-500.0,9.996e-05,2]
[348357482,1736464242828,-501.81930994,9.996e-05,2]
[348357483,1736464242837,-500.0,9.996e-05,2]
[348357484,1736464242847,-501.31719963,9.996e-05,2]
[348357485,1736464242857,-500.0,9.996e-05,2]
[348357486,1736464242866,-500.0,9.996e-05,2]
[348357487,1736464242876,-501.40142321,9.996e-05,2]
[348357488,1736464242885,-700.2,9.996e-05,2]
[348357489,1736464242896,-500.0,9.996e-05,2]
[348357490,1736464242905,-500.0,9.996e-05,2]
[348357491,1736464242915,-500.0,9.996e-05,2]
[348357492,1736464242924,-500.0,9.996e-05,2]
[348357493,1736464242933,-500.0,9.996e-05,2]
[348357495,1736464242943,-500.0,9.996e-05,2]
[348357496,1736464242952,-500.0,9.996e-05,2]
[348357497,1736464242961,-501.36670722,9.996e-05,2]
[348357498,1736464242971,-500.0,9.996e-05,2]
[348357499,1736464242980,-500.0,9.996e-05,2]
[348357500,1736464242990,-500.0,9.996e-05,2]
[348357501,1736464242999,-500.0,9.996e-05,2]
[348357502,1736464243010,-500.0,9.996e-05,2]
[348357503,1736464243020,-500.0,9.996e-05,2]
[348357504,1736464243030,-500.0,9.996e-05,2]
[348357505,1736464243040,-500.0,9.996e-05,2]
[348357506,1736464243050,-500.0,9.996e-05,2]
[348357507,1736464243059,-500.0,9.996e-05,2]
[348357508,1736464243069,-500.0,9.996e-05,2]
[348357510,1736464243079,-867.73,9.996e-05,2]
[348357511,1736464243091,-500.0,9.996e-05,2]
[348357512,1736464243100,-500.0,9.996e-05,2]
[348357514,1736464243110,-500.0,9.996e-05,2]
[348357516,1736464243119,-500.0,9.996e-05,2]
[348357517,1736464243128,-500.0,9.996e-05,2]
[348357519,1736464243138,-500.0,9.996e-05,2]
[348357520,1736464243147,-500.0,9.996e-05,2]
[348357522,1736464243156,-500.0,9.996e-05,2]
[348357524,1736464243166,-500.0,9.996e-05,2]
[348357525,1736464243175,-500.0,9.996e-05,2]
[348357527,1736464243184,-500.0,9.996e-05,2]
[348357529,1736464243194,-404.0531307,9.996e-05,2]
[348357530,1736464243203,-500.0,9.996e-05,2]
[348357531,1736464243212,-500.0,9.996e-05,2]
[348357532,1736464243222,-500.0,9.996e-05,2]
[348357533,1736464243231,-500.0,9.996e-05,2]
[348357534,1736464243240,-500.0,9.996e-05,2]
[348357535,1736464243249,-500.0,9.996e-05,2]
[348357536,1736464243258,-500.0,9.996e-05,2]
[348357537,1736464243268,-500.0,9.996e-05,2]
[348357538,1736464243277,-500.0,9.996e-05,2]
[348357539,1736464243287,-500.0,9.996e-05,2]
[348357540,1736464243297,-500.0,9.996e-05,2]
[348357541,1736464243306,-500.0,9.996e-05,2]
[348357542,1736464243315,-504.67,9.996e-05,2]
[348357543,1736464243324,-500.60989328,9.996e-05,2]
[348357544,1736464243334,-500.0,9.996e-05,2]
[348357545,1736464243343,-500.0,9.996e-05,2]
[348357546,1736464243352,-500.0,9.996e-05,2]
[348357547,1736464243361,-378.66583148,9.996e-05,2]
[348357548,1736464243371,-500.0,9.996e-05,2]
[348357549,1736464243380,-1142.97,9.996e-05,2]
[348357550,1736464243389,-500.0,9.996e-05,2]
[348357551,1736464243399,-500.0,9.996e-05,2]
[348357552,1736464243408,-500.0,9.996e-05,2]
[348357553,1736464243417,-647.97972262,9.996e-05,2]
[348357554,1736464243426,-500.0,9.996e-05,2]
[348357555,1736464243435,-340.65300167,9.996e-05,2]
[348357556,1736464243447,-500.0,9.996e-05,2]
[348357557,1736464243457,-500.0,9.996e-05,2]
[348357558,1736464243466,-55.54847021,9.996e-05,2]
[348357559,1736464243515,-462.12552877,9.996e-05,2]
[348357560,1736464243524,-500.0,9.996e-05,2]
[348357561,1736464243533,-37.86686458,9.996e-05,2]
[348357562,1736464243546,-462.13313542,9.996e-05,2]
[348357563,1736464243556,-500.0,9.996e-05,2]
[348357564,1736464243566,-279.70432259,9.996e-05,2]
[348357565,1736464243591,-220.29567741,9.996e-05,2]
[348357566,1736464243602,-500.0,9.996e-05,2]
[348357567,1736464243614,-500.0,9.996e-05,2]
[348357568,1736464243623,-500.0,9.996e-05,2]
[348357569,1736464243633,-500.0,9.996e-05,2]
[348357570,1736464243643,-500.0,9.996e-05,2]
[348357572,1736464243653,-500.0,9.996e-05,2]
[348357573,1736464243663,-500.0,9.996e-05,2]
[348357574,1736464243672,-500.0,9.996e-05,2]
[348357575,1736464243682,-500.0,9.996e-05,2]
[348357576,1736464243691,-153.1736987,9.996e-05,2]
[348357577,1736464243703,-346.8263013,9.996e-05,2]
[348357578,1736464243711,-500.0,9.996e-05,2]
[348357579,1736464243720,-500.0,9.996e-05,2]
[348357580,1736464243729,-500.0,9.996e-05,2]
[348357581,1736464243739,-191.80746674,9.996e-05,2]
[348357582,1736464243748,-352.86631841,9.996e-05,2]
[348357584,1736464243757,-500.0,9.996e-05,2]
[348357586,1736464243766,-500.0,9.996e-05,2]
[348357588,1736464243775,-500.0,9.996e-05,2]
[348357590,1736464243785,-179.29991355,9.996e-05,2]
[348357592,1736464243797,-463.145,9.996e-05,2]
[348357593,1736464243808,-151.86508645,9.996e-05,2]
[348357594,1736464243818,-127.08728379,9.996e-05,2]
[348357595,1736464243829,-372.91271621,9.996e-05,2]
[348357596,1736464243839,-506.58515974,9.996e-05,2]
[348357597,1736464243848,-500.0,9.996e-05,2]
[348357598,1736464243858,-500.0,9.996e-05,2]
[348357599,1736464243867,-500.0,9.996e-05,2]
[348357600,1736464243877,-500.0,9.996e-05,2]
[348357601,1736464243887,-500.0,9.996e-05,2]
[348357602,1736464243896,-500.42362975,9.996e-05,2]
[348357603,1736464243906,-500.0,9.996e-05,2]
[348357604,1736464243916,-975.85,9.996e-05,2]
[348357605,1736464243926,-500.0,9.996e-05,2]
[348357606,1736464243935,-1.97163367,9.996e-05,2]
[348357607,1736464243947,-318.0389245,9.996e-05,2]
[348357608,1736464243956,-358.88907369,9.996e-05,2]
[348357609,1736464243967,-141.11092631,9.996e-05,2]
[348357610,1736464243976,-185.13907069,9.996e-05,2]
[348357611,1736464243987,-314.86092931,9.996e-05,2]
[348357612,1736464243997,-111.13906069,9.996e-05,2]
[348357613,1736464244015,-617.70093931,9.996e-05,2]
[348357614,1736464244024,-500.0,9.996e-05,2]
[348357615,1736464244034,-500.0,9.996e-05,2]
[348357616,1736464244044,-500.0,9.996e-05,2]
[348357617,1736464244053,-500.0,9.996e-05,2]
[348357618,1736464244062,-982.11,9.996e-05,2]
[348357619,1736464244072,-500.0,9.996e-05,2]
[348357620,1736464244081,-500.0,9.996e-05,2]
[348357621,1736464244090,-500.0,9.996e-05,2]
[348357622,1736464244100,-500.0,9.996e-05,2]
[348357623,1736464244109,-567.59924121,9.996e-05,2]
[348357624,1736464244119,-1.82801948,9.996e-05,2]
[348357625,1736464244130,-382.71881423,9.996e-05,2]
[348357626,1736464244141,-115.45316629,9.996e-05,2]
[348357627,1736464244151,-508.24,9.996e-05,2]
[348357628,1736464244160,-500.14453577,9.996e-05,2]
[348357629,1736464244170,-500.0,9.996e-05,2]
[348357630,1736464244180,-199.1921588,9.996e-05,2]
[348357631,1736464244191,-300.8078412,9.996e-05,2]
[348357632,1736464244201,-500.0,9.996e-05,2]
[348357633,1736464244211,-500.0,9.996e-05,2]
[348357634,1736464244220,-500.0,9.996e-05,2]
[348357635,1736464244231,-500.0,9.996e-05,2]
[348357636,1736464244241,-500.0,9.996e-05,2]
[348357637,1736464244251,-500.0,9.996e-05,2]
[348357638,1736464244260,-299.1921588,9.996e-05,2]
[348357639,1736464244273,-262.1378412,9.996e-05,2]
[348357640,1736464244283,-500.0,9.996e-05,2]
[348357641,1736464244294,-497.32489568,9.996e-05,2]
[348357642,1736464244306,-2.67510432,9.996e-05,2]
[348357643,1736464244316,-500.0,9.996e-05,2]
[348357644,1736464244325,-500.0,9.996e-05,2]
[348357645,1736464244337,-500.0,9.996e-05,2]
[348357646,1736464244348,-500.0,9.996e-05,2]
[348357647,1736464244359,-23.98367433,9.996e-05,2]
[348357648,1736464244373,-476.01632567,9.996e-05,2]
[348357649,1736464244383,-500.0,9.996e-05,2]
[348357650,1736464244392,-500.0,9.996e-05,2]
[348357651,1736464244402,-500.0,9.996e-05,2]
[348357652,1736464244412,-500.0,9.996e-05,2]
[348357653,1736464244423,-500.0,9.996e-05,2]
[348357654,1736464244434,-638.96,9.996e-05,2]
[348357655,1736464244445,-500.0,9.996e-05,2]
[348357656,1736464244455,-546.36232796,9.996e-05,2]
[348357657,1736464244467,-138.66134637,9.996e-05,2]
[348357658,1736464244480,-361.33865363,9.996e-05,2]
[348357659,1736464244491,-1017.41,9.996e-05,2]
[348357660,1736464244501,-500.0,9.996e-05,2]
[348357661,1736464244511,-500.0,9.996e-05,2]
[348357662,1736464244521,-500.0,9.996e-05,2]
[348357663,1736464244532,-500.0,9.996e-05,2]
[348357664,1736464244543,-500.0,9.996e-05,2]
[348357665,1736464244552,-500.0,9.996e-05,2]
[348357666,1736464244561,-500.0,9.996e-05,2]
[348357667,1736464244573,-833.34,9.996e-05,2]
[348357668,1736464244584,-500.0,9.996e-05,2]
[348357669,1736464244594,-500.0,9.996e-05,2]
[348357670,1736464244604,-500.0,9.996e-05,2]
[348357671,1736464244615,-494.37335519,9.996e-05,2]
[348357672,1736464244624,-505.1995822,9.996e-05,2]
[348357673,1736464244634,-896.7,9.996e-05,2]
[348357674,1736464244645,-500.0,9.996e-05,2]
[348357675,1736464244655,-500.0,9.996e-05,2]
[348357676,1736464244665,-500.0,9.996e-05,2]
[348357677,1736464244675,-500.0,9.996e-05,2]
[348357678,1736464244687,-500.0,9.996e-05,2]
[348357679,1736464244699,-500.0,9.996e-05,2]
[348357680,1736464244708,-511.55296013,9.998e-05,2]
[348357681,1736464244717,-2000.0,9.998e-05,2]
[348357682,1736464244727,-200.0,9.998e-05,2]
[348357683,1736464244737,-552.72,9.998e-05,2]
[348357684,1736464244746,-785.08,9.998e-05,2]
[348357685,1736464244755,-519.36,9.998e-05,2]
[348357686,1736464244765,-500.0,9.998e-05,2]
[348357687,1736464244776,-500.0,9.998e-05,2]
[348357688,1736464244787,-500.0,9.998e-05,2]
[348357689,1736464244796,-1108.77,9.998e-05,2]
[348357690,1736464244806,-541.64,9.998e-05,2]
[348357691,1736464244815,-1006.73,9.998e-05,2]
[348357692,1736464244825,-500.0,9.998e-05,2]
[348357693,1736464244837,-1338.02,9.998e-05,2]
[348357694,1736464244848,-500.0,9.998e-05,2]
[348357695,1736464244857,-551.26,9.998e-05,2]
[348357696,1736464244867,-500.0,9.998e-05,2]
[348357697,1736464244877,-500.0,9.998e-05,2]
[348357698,1736464244887,-735.25,9.998e-05,2]
[348357699,1736464244897,-500.0,9.998e-05,2]
[348357700,1736464244907,-500.0,9.998e-05,2]
[348357701,1736464244917,-500.0,9.998e-05,2]
[348357702,1736464244927,-500.0,9.998e-05,2]
[348357703,1736464244937,-200.0,9.998e-05,2]
[348357704,1736464244947,-165.1,0.0001,2]
[348357705,1736464244956,-24545.87532545,0.0001,2]
[348357706,1736464244975,-63044.05311588,0.0001,2]
[348357707,1736464244984,-3000.0,0.0001,2]
[348357708,1736464244995,-8058.07130917,0.0001,2]
[348357709,1736464245005,-218.95075137,0.0001,2]
[348357710,1736464245014,-218.95075136,0.0001,2]
[348357711,1736464245024,-218.95075136,0.0001,2]
[348357712,1736464245033,-218.95075136,0.0001,2]
[348357713,1736464245043,-218.95075136,0.0001,2]
[348357714,1736464245053,-218.95075136,0.0001,2]
[348357715,1736464245063,-3895.0,0.0001002,2]
[348357716,1736464245271,-9622.0,0.0001002,2]
[348357717,1736464245281,-1173.0,0.0001002,2]
[348357718,1736464245291,-150.0,0.0001002,2]
[348357719,1736464245300,-218.95075136,0.00010093,2]
[348357720,1736464245310,-500.0,0.00010113,2]
[348357721,1736464245320,-993.08,0.00010113,2]
[348357722,1736464245330,-500.0,0.00010113,2]
[348357723,1736464245340,-617.62,0.00010113,2]
[348357724,1736464245349,-1339.91,0.00010114,2]
[348357725,1736464245359,-2035.79011976,0.00010114,2]
[348357726,1736464245377,-243.01988024,0.00010114,2]
[348357727,1736464245387,-1459.99,0.00010114,2]
[348357728,1736464245398,-972.62,0.00010114,2]
[348357729,1736464245408,-1110.589587,0.00010114,2]
[348357730,1736464245419,-300.91950388,0.00010114,2]
[348357731,1736464245648,-856.13320612,0.00010114,2]
[348357732,1736464245660,-2833.48,0.00010114,2]
[348357733,1736464245670,-1582.95,0.00010114,2]
[348357734,1736464245683,-624.77,0.00010114,2]
[348357735,1736464245693,-500.0,0.00010114,2]
[348357736,1736464245704,-500.0,0.00010114,2]
[348357737,1736464245715,-3780.45,0.00010114,2]
[348357738,1736464245725,-709.63,0.00010114,2]
[348357739,1736464245734,-1351.09,0.00010114,2]
[348357740,1736464245744,-1032.34,0.00010114,2]
[348357741,1736464245753,-500.0,0.00010114,2]
[348357742,1736464245763,-548.37,0.00010114,2]
[348357743,1736464245772,-482.00139696,0.00010114,2]
[348357744,1736464245784,-17.99860304,0.00010114,2]
[348357745,1736464245794,-500.0,0.00010114,2]
[348357746,1736464245803,-500.0,0.00010114,2]
[348357747,1736464245813,-500.0,0.00010114,2]
[348357748,1736464245822,-150.803734,0.00010114,2]
[348357749,1736464245831,-762.07,0.00010114,2]
[348357750,1736464245840,-607.1,0.00010114,2]
[348357751,1736464245850,-500.0,0.00010114,2]
[348357752,1736464245859,-500.0,0.00010114,2]
[348357753,1736464245869,-500.0,0.00010114,2]
[348357754,1736464245878,-500.0,0.00010114,2]
[348357755,1736464245888,-500.0,0.00010114,2]
[348357756,1736464245898,-737.67,0.00010114,2]
[348357757,1736464245908,-500.0,0.00010114,2]
[348357758,1736464245917,-500.0,0.00010114,2]
[348357759,1736464245927,-500.0,0.00010114,2]
[348357760,1736464245936,-500.0,0.00010114,2]
[348357761,1736464245946,-926.14,0.00010114,2]
[348357762,1736464245955,-541.82,0.00010114,2]
[348357763,1736464245965,-500.0,0.00010114,2]
[348357764,1736464245974,-614.21,0.00010114,2]
[348357765,1736464245983,-600.17,0.00010114,2]
[348357766,1736464245993,-767.02,0.00010114,2]
[348357767,1736464246003,-2079.27,0.00010114,2]
[348357768,1736464246012,-768.23,0.00010114,2]
[348357769,1736464246022,-500.0,0.00010114,2]
[348357770,1736464246031,-886.94,0.00010114,2]
[348357771,1736464246043,-500.0,0.00010114,2]
[348357773,1736464246061,-500.0,0.00010114,2]
[348357774,1736464246074,-537.95,0.00010114,2]
[348357775,1736464246085,-1299.47,0.00010114,2]
[348357776,1736464246095,-500.0,0.00010114,2]
[348357777,1736464246107,-506.79,0.00010114,2]
[348357778,1736464246119,-755.46,0.00010114,2]
[348357779,1736464246130,-500.0,0.00010114,2]
[348357780,1736464246141,-500.0,0.00010114,2]
[348357781,1736464246151,-533.03,0.00010114,2]
[348357782,1736464246162,-1778.0,0.00010114,2]
[348357783,1736464246173,-500.0,0.00010114,2]
[348357784,1736464246183,-500.0,0.00010114,2]
[348357785,1736464246194,-500.0,0.00010114,2]
[348357786,1736464246204,-654.69,0.00010114,2]
[348357787,1736464246215,-1299.64,0.00010114,2]
[348357788,1736464246225,-500.0,0.00010114,2]
[348357789,1736464246234,-500.0,0.00010114,2]
[348357790,1736464246244,-500.0,0.00010114,2]
[348357791,1736464246254,-669.53,0.00010114,2]
[348357792,1736464246265,-878.17,0.00010114,2]
[348357793,1736464246275,-746.31,0.00010114,2]
[348357794,1736464246287,-2825.53,0.00010114,2]
[348357795,1736464246298,-500.0,0.00010114,2]
[348357796,1736464246307,-500.0,0.00010114,2]
[348357797,1736464246319,-500.0,0.00010114,2]
[348357798,1736464246331,-500.0,0.00010114,2]
[348357799,1736464246341,-1370.91,0.00010114,2]
[348357800,1736464246351,-602.66147545,0.00010114,2]
[348357801,1736464246364,-500.0,0.00010114,2]
[348357802,1736464246375,-509.67,0.00010114,2]
[348357803,1736464246386,-500.0,0.00010114,2]
[348357804,1736464246398,-1016.91,0.00010114,2]
[348357805,1736464246409,-5530.79,0.00010114,2]
[348357806,1736464246418,-893.55,0.00010114,2]
[348357807,1736464246427,-1024.58,0.00010114,2]
[348357808,1736464246437,-3300.0,0.00010114,2]
[348357809,1736464246447,-500.0,0.00010114,2]
[348357810,1736464246456,-566.28211598,0.00010114,2]
[348357811,1736464246466,-500.0,0.00010114,2]
[348357812,1736464246475,-3918.44,0.00010114,2]
[348357813,1736464246485,-568.54,0.00010114,2]
[348357814,1736464246494,-1679.97,0.00010114,2]
[348357815,1736464246504,-500.0,0.00010114,2]
[348357816,1736464246513,-500.0,0.00010114,2]
[348357817,1736464246523,-1225.86,0.00010114,2]
[348357819,1736464246532,-500.0,0.00010114,2]
[348357821,1736464246542,-3498.36,0.00010114,2]
[348357823,1736464246552,-608.13,0.00010114,2]
[348357825,1736464246563,-505.26483855,0.00010114,2]
[348357827,1736464246573,-2567.68599894,0.00010114,2]
[348357830,1736464246594,-357.57118114,0.00010114,2]
[348357835,1736464246635,-3712.58576236,0.00010114,2]
[348357838,1736464246646,-3125.25705756,0.00010114,2]
[348357840,1736464246657,-637.7,0.00010114,2]
[348357842,1736464246666,-586.55,0.00010114,2]
[348357844,1736464246676,-500.0,0.00010114,2]
[348357846,1736464246686,-500.0,0.00010114,2]
[348357848,1736464246696,-500.0,0.00010114,2]
[348357850,1736464246706,-1383.75,0.00010114,2]
[348357852,1736464246716,-1654.81,0.00010114,2]
[348357854,1736464246726,-1394.24,0.00010114,2]
[348357856,1736464246735,-570.03,0.00010114,2]
[348357858,1736464246745,-1197.12,0.00010114,2]
[348357860,1736464246754,-500.0,0.00010114,2]
[348357862,1736464246764,-1383.77,0.00010114,2]
[348357864,1736464246773,-1806.31,0.00010114,2]
[348357866,1736464246782,-791.51,0.00010114,2]
[348357869,1736464246792,-2302.39,0.00010114,2]
[348357871,1736464246802,-601.46,0.00010114,2]
[348357872,1736464246812,-565.10294244,0.00010114,2]
[348357915,1736464247206,-1641.51,9.841e-05,2]
[348357917,1736464247216,-3315.16705756,0.00010114,2]
[348357919,1736464247226,-1263.19,0.00010114,2]
[348357921,1736464247235,-500.0,0.00010114,2]
[348357923,1736464247245,-500.0,0.00010114,2]
[348357925,1736464247254,-555.45,0.00010114,2]
[348357928,1736464247264,-2255.87,0.00010114,2]
[348357930,1736464247273,-4315.7,0.00010114,2]
[348357932,1736464247283,-1855.94,0.00010114,2]
[348357934,1736464247293,-2919.4,0.00010114,2]
[348357936,1736464247302,-335.15270523,0.00010114,2]
[348357937,1736464247313,-1017.18729477,0.00010114,2]
[348357938,1736464247323,-510.67,0.00010114,2]
[348357939,1736464247333,-1015.51,0.00010114,2]
[348357940,1736464247342,-500.0,0.00010114,2]
[348357941,1736464247352,-2079.95,0.00010114,2]
[348357942,1736464247363,-802.81,0.00010114,2]